fUSD/lending_fUSD_20250202
["ID","MTS","AMOUNT","RATE_DAILY","PERIOD"]
[351291609,1738506657406,-500.0,0.00011369,2]
[351291610,1738506657415,-500.0,0.00011369,2]
[351291611,1738506657425,-500.0,0.00011369,2]
[351291612,1738506657434,-500.0,0.00011369,2]
[351291613,1738506657444,-500.0,0.00011369,2]
[351291614,1738506657454,-500.0,0.00011369,2]
[351291615,1738506657463,-500.0,0.00011369,2]
[351291616,1738506657473,-500.0,0.00011369,2]
[351291617,1738506657483,-1671.28,0.00011369,2]
[351291618,1738506657493,-500.0,0.00011369,2]
[351291619,1738506657502,-500.0,0.00011369,2]
[351291620,1738506657512,-500.0,0.00011369,2]
[351291621,1738506657521,-2702.01483386,0.00011397,2]
[351291622,1738506657531,-150.0,0.00011467,2]
[351291623,1738506657541,-2702.01483386,0.00011497,2]
[351291624,1738506657553,-500.0,0.00011505,2]
[351291625,1738506657569,-500.0,0.00011505,2]
[351291626,1738506657578,-500.0,0.00011505,2]
[351291627,1738506657588,-500.0,0.00011505,2]
[351291628,1738506657597,-500.0,0.00011505,2]
[351291629,1738506657607,-500.0,0.00011505,2]
[351291630,1738506657617,-500.0,0.00011505,2]
[351291631,1738506657627,-500.0,0.00011505,2]
[351291632,1738506657638,-500.0,0.00011505,2]
[351291633,1738506657647,-500.0,0.00011505,2]
[351291634,1738506657657,-500.0,0.00011505,2]
[351291635,1738506657667,-500.0,0.00011505,2]
[351291636,1738506657676,-500.0,0.00011505,2]
[351291637,1738506657686,-500.0,0.00011505,2]
[351291638,1738506657695,-500.0,0.00011505,2]
[351291639,1738506657705,-500.0,0.00011506,2]
[351291640,1738506657714,-1169.64,0.00011506,2]
[351291641,1738506657724,-814.79,0.00011506,2]
[351291642,1738506657733,-842.17,0.00011506,2]
[351291643,1738506657742,-546.90310036,0.00011506,2]
[351291644,1738506657752,-655.84,0.00011506,2]
[351291645,1738506657761,-500.0,0.00011506,2]
[351291646,1738506657770,-500.0,0.00011506,2]
[351291647,1738506657781,-1177.97,0.00011506,2]
[351291648,1738506657790,-500.0,0.00011506,2]
[351291649,1738506657800,-500.0,0.00011506,2]
[351291650,1738506657810,-5302.21,0.00011506,2]
[351291651,1738506657820,-500.0,0.00011506,2]
[351291652,1738506657830,-500.0,0.00011506,2]
[351291653,1738506657840,-4287.99,0.00011506,2]
[351291654,1738506657850,-589.0,0.00011506,2]
[351291655,1738506657859,-1862.85,0.00011506,2]
[351291656,1738506657868,-500.0,0.00011506,2]
[351291657,1738506657879,-665.57,0.00011506,2]
[351291658,1738506657888,-500.0,0.00011506,2]
[351291659,1738506657897,-500.0,0.00011506,2]
[351291660,1738506657907,-500.0,0.00011506,2]
[351291661,1738506657921,-1242.37,0.00011506,2]
[351291662,1738506657930,-504.79,0.00011506,2]
[351291663,1738506657939,-500.0,0.00011506,2]
[351291664,1738506657951,-500.0,0.00011506,2]
[351291665,1738506657961,-500.0,0.00011506,2]
[351291666,1738506657971,-500.0,0.00011506,2]
[351291667,1738506657981,-500.0,0.00011506,2]
[351291668,1738506657992,-645.07903136,0.00011506,2]
[351291669,1738506658002,-500.0,0.00011506,2]
[351291670,1738506658011,-500.0,0.00011506,2]
[351291671,1738506658022,-1671.28,0.00011506,2]
[351291672,1738506658031,-500.0,0.00011506,2]
[351291673,1738506658041,-500.0,0.00011506,2]
[351291674,1738506658050,-190.99085497,0.00011506,2]
[351291675,1738506658059,-2702.01483386,0.00011598,2]
[351291676,1738506658304,-500.0,0.00011642,2]
[351291677,1738506658314,-500.0,0.00011642,2]
[351291678,1738506658324,-500.0,0.00011642,2]
[351291679,1738506658334,-500.0,0.00011642,2]
[351291680,1738506658344,-500.0,0.00011642,2]
[351291681,1738506658354,-500.0,0.00011642,2]
[351291682,1738506658364,-500.0,0.00011642,2]
[351291683,1738506658374,-500.0,0.00011642,2]
[351291684,1738506658383,-500.0,0.00011642,2]
[351291685,1738506658392,-500.0,0.00011642,2]
[351291686,1738506658402,-500.0,0.00011642,2]
[351291687,1738506658411,-500.0,0.00011642,2]
[351291688,1738506658421,-500.0,0.00011642,2]
[351291689,1738506658430,-7111.9,0.00011643,2]
[351291690,1738506658439,-500.0,0.00011643,2]
[351291691,1738506658449,-1169.64,0.00011643,2]
[351291692,1738506658458,-814.79,0.00011643,2]
[351291693,1738506658467,-842.17,0.00011643,2]
[351291694,1738506658477,-655.84,0.00011643,2]
[351291695,1738506658487,-596.82314341,0.00011643,2]
[351291696,1738506658496,-500.0,0.00011643,2]
[351291697,1738506658506,-1177.97,0.00011643,2]
[351291698,1738506658515,-500.0,0.00011643,2]
[351291699,1738506658524,-502.51740465,0.00011643,2]
[351291700,1738506658534,-5302.21,0.00011643,2]
[351291701,1738506658545,-453.96352971,0.00011643,2]
[351291702,1738506658556,-500.0,0.00011643,2]
[351291703,1738506658565,-4287.99,0.00011643,2]
[351291704,1738506658576,-589.0,0.00011643,2]
[351291705,1738506658584,-1862.85,0.00011643,2]
[351291706,1738506658592,-500.0,0.00011643,2]
[351291707,1738506658602,-665.57,0.00011643,2]
[351291708,1738506658611,-500.0,0.00011643,2]
[351291709,1738506658628,-500.0,0.00011643,2]
[351291710,1738506658646,-500.0,0.00011643,2]
[351291711,1738506658655,-1242.37,0.00011643,2]
[351291712,1738506658665,-504.79,0.00011643,2]
[351291713,1738506658674,-500.0,0.00011643,2]
[351291714,1738506658684,-500.0,0.00011643,2]
[351291715,1738506658694,-266.27599985,0.00011643,2]
[351291716,1738506658704,-500.0,0.00011643,2]
[351291717,1738506658713,-500.0,0.00011643,2]
[351291718,1738506658723,-500.0,0.00011643,2]
[351291719,1738506658732,-500.0,0.00011643,2]
[351291720,1738506658743,-1671.28,0.00011643,2]
[351291721,1738506658752,-500.0,0.00011643,2]
[351291722,1738506658762,-500.0,0.00011643,2]
[351291723,1738506658771,-2702.01483386,0.00011699,2]
[351291724,1738506658781,-559.88525163,0.00011779,2]
[351291725,1738506658791,-649.92567702,0.00011779,2]
[351291726,1738506658800,-500.0,0.00011779,2]
[351291727,1738506658809,-500.0,0.00011779,2]
[351291728,1738506658818,-500.0,0.00011779,2]
[351291729,1738506658830,-500.0,0.00011779,2]
[351291730,1738506658839,-500.0,0.00011779,2]
[351291731,1738506658849,-500.0,0.00011779,2]
[351291732,1738506658858,-500.0,0.00011779,2]
[351291733,1738506658870,-500.0,0.00011779,2]
[351291734,1738506658880,-425.62165842,0.00011779,2]
[351291735,1738506658889,-500.0,0.00011779,2]
[351291736,1738506658899,-7111.9,0.0001178,2]
[351291737,1738506658908,-500.0,0.0001178,2]
[351291738,1738506658919,-1169.64,0.0001178,2]
[351291739,1738506658930,-814.79,0.0001178,2]
[351291740,1738506658939,-842.17,0.0001178,2]
[351291741,1738506658950,-655.84,0.0001178,2]
[351291742,1738506658959,-500.0,0.0001178,2]
[351291743,1738506658970,-1177.97,0.0001178,2]
[351291744,1738506658979,-500.0,0.0001178,2]
[351291745,1738506658988,-5302.21,0.0001178,2]
[351291746,1738506659000,-500.0,0.0001178,2]
[351291747,1738506659009,-4287.99,0.0001178,2]
[351291748,1738506659018,-589.0,0.0001178,2]
[351291749,1738506659027,-1862.85,0.0001178,2]
[351291750,1738506659036,-500.0,0.0001178,2]
[351291751,1738506659046,-665.57,0.0001178,2]
[351291752,1738506659055,-500.0,0.0001178,2]
[351291753,1738506659064,-500.0,0.0001178,2]
[351291754,1738506659073,-500.0,0.0001178,2]
[351291755,1738506659083,-1242.37,0.0001178,2]
[351291756,1738506659092,-504.79,0.0001178,2]
[351291757,1738506659102,-500.0,0.0001178,2]
[351291758,1738506659112,-500.0,0.0001178,2]
[351291759,1738506659121,-500.0,0.0001178,2]
[351291760,1738506659130,-408.74697079,0.0001178,2]
[351291761,1738506659139,-500.0,0.0001178,2]
[351291762,1738506659148,-500.0,0.0001178,2]
[351291763,1738506659158,-1671.28,0.0001178,2]
[351291764,1738506659168,-500.0,0.0001178,2]
[351291765,1738506659177,-500.0,0.0001178,2]
[351291766,1738506659186,-2702.01483386,0.00011799,2]
[351291767,1738506659195,-2490.24515177,0.000119,2]
[351291768,1738506659205,-221.72023537,0.000119,2]
[351291769,1738506659215,-2702.01483386,0.000119,2]
[351291770,1738506659224,-238.9856279,0.00011916,2]
[351291771,1738506659235,-500.0,0.00011916,2]
[351291772,1738506659246,-500.0,0.00011916,2]
[351291773,1738506659258,-500.0,0.00011916,2]
[351291774,1738506659268,-500.0,0.00011916,2]
[351291775,1738506659277,-234.36245699,0.00011916,2]
[351291776,1738506659287,-500.0,0.00011916,2]
[351291777,1738506659297,-500.0,0.00011916,2]
[351291778,1738506659306,-500.0,0.00011916,2]
[351291779,1738506659316,-7111.9,0.00011917,2]
[351291780,1738506659326,-500.0,0.00011917,2]
[351291781,1738506659336,-1169.64,0.00011917,2]
[351291782,1738506659345,-814.79,0.00011917,2]
[351291783,1738506659356,-842.17,0.00011917,2]
[351291784,1738506659366,-655.84,0.00011917,2]
[351291785,1738506659375,-500.0,0.00011917,2]
[351291786,1738506659384,-1177.97,0.00011917,2]
[351291787,1738506659393,-500.0,0.00011917,2]
[351291788,1738506659403,-5302.21,0.00011917,2]
[351291789,1738506659413,-377.25320536,0.00011917,2]
[351291790,1738506659423,-4287.99,0.00011917,2]
[351291791,1738506659433,-589.0,0.00011917,2]
[351291792,1738506659443,-1862.85,0.00011917,2]
[351291793,1738506659456,-500.0,0.00011917,2]
[351291794,1738506659466,-665.57,0.00011917,2]
[351291795,1738506659476,-500.0,0.00011917,2]
[351291796,1738506659485,-500.0,0.00011917,2]
[351291797,1738506659495,-500.0,0.00011917,2]
[351291798,1738506659504,-1242.37,0.00011917,2]
[351291799,1738506659513,-504.79,0.00011917,2]
[351291800,1738506659522,-500.0,0.00011917,2]
[351291801,1738506659533,-500.0,0.00011917,2]
[351291802,1738506659543,-500.0,0.00011917,2]
[351291803,1738506659552,-500.0,0.00011917,2]
[351291804,1738506659562,-290.20298573,0.00011917,2]
[351291805,1738506659572,-1671.28,0.00011917,2]
[351291806,1738506659582,-500.0,0.00011917,2]
[351291807,1738506659591,-500.0,0.00011917,2]
[351291808,1738506659601,-949817.88981633,0.00012,2]
[351291809,1738506660257,-859.095,0.00010858,2]
[351291810,1738506660277,-4140.905,0.00010858,2]
[351291811,1738506660286,-643.93,0.00010958,2]
[351291812,1738506660298,-500.0,0.00010958,2]
[351291813,1738506660307,-500.0,0.00010958,2]
[351291814,1738506660316,-566.64175113,0.00011094,2]
[351291815,1738506660325,-928.71,0.00011095,2]
[351291816,1738506660335,-643.93,0.00011095,2]
[351291817,1738506660344,-500.0,0.00011095,2]
[351291818,1738506660353,-500.0,0.00011095,2]
[351291819,1738506660362,-928.71,0.00011232,2]
[351291820,1738506660371,-643.93,0.00011232,2]
[351291821,1738506660380,-500.0,0.00011232,2]
[351291822,1738506660390,-500.0,0.00011232,2]
[351291823,1738506660399,-500.0,0.00011368,2]
[351291824,1738506660408,-500.0,0.00011368,2]
[351291825,1738506660418,-928.71,0.00011369,2]
[351291826,1738506660427,-643.93,0.00011369,2]
[351291827,1738506660436,-500.0,0.00011369,2]
[351291828,1738506660445,-500.0,0.00011369,2]
[351291829,1738506660456,-500.0,0.00011505,2]
[351291830,1738506660465,-928.71,0.00011506,2]
[351291831,1738506660475,-643.93,0.00011506,2]
[351291832,1738506660485,-500.0,0.00011506,2]
[351291833,1738506660494,-500.0,0.00011506,2]
[351291834,1738506660503,-928.71,0.00011643,2]
[351291835,1738506660513,-643.93,0.00011643,2]
[351291836,1738506660522,-500.0,0.00011643,2]
[351291837,1738506660533,-500.0,0.00011643,2]
[351291838,1738506660543,-928.71,0.0001178,2]
[351291839,1738506660552,-643.93,0.0001178,2]
[351291840,1738506660562,-500.0,0.0001178,2]
[351291841,1738506660575,-928.71,0.00011917,2]
[351291842,1738506660585,-643.93,0.00011917,2]
[351291843,1738506660595,-500.0,0.00011917,2]
[351291844,1738506660606,-267686.58418202,0.00012,2]
[351291845,1738506660619,-368.4,0.00012,2]
[351291846,1738506660630,-6841.84931987,0.00012,2]
[351291847,1738506660642,-453.00107254,0.00012,2]
[351291848,1738506660653,-198424.13365606,0.00012,2]
[351291849,1738506660672,-6411.85866293,0.00012,2]
[351291850,1738506660710,-837.40192961,0.00012,2]
[351291851,1738506660722,-1877.54313522,0.00012,2]
[351291852,1738506660733,-1148.76236299,0.00012,2]
[351291853,1738506660745,-638.73411957,0.00012,2]
[351291854,1738506660772,-500.0,0.00011505,2]
[351291855,1738506660781,-8428486.91938107,0.00012,2]
[351291856,1738506660792,-41416.17623125,0.00012,2]
[351291857,1738506660804,-4601.9013815,0.00012,2]
[351291858,1738506661187,-397.652,0.00010958,2]
[351291859,1738506661214,-102.348,0.00010958,2]
[351291860,1738506661227,-500.0,0.00011368,2]
[351291861,1738506661237,-500.0,0.00011368,2]
[351291862,1738506661247,-500.0,0.00011505,2]
[351291863,1738506661257,-400.34086706,0.00011505,2]
[351291864,1738506661267,-500.0,0.00011642,2]
[351291865,1738506661278,-500.0,0.00011642,2]
[351291866,1738506661287,-500.0,0.00011779,2]
[351291867,1738506661297,-500.0,0.00011779,2]
[351291868,1738506661307,-500.0,0.0001178,2]
[351291869,1738506661316,-500.0,0.00011916,2]
[351291870,1738506661326,-500.0,0.00011916,2]
[351291871,1738506661336,-500.0,0.00011917,2]
[351291872,1738506661345,-41648.01304713,0.00012,2]
[351291873,1738506661357,-797.49998,0.00012,2]
[351291874,1738506661376,-990.5218,0.00012,2]
[351291875,1738506661396,-405.555575,0.00011095,2]
[351291876,1738506661679,-500.0,0.00010958,2]
[351291877,1738506661690,-83.235008,0.00011095,2]
[351291878,1738506661714,-11.209417,0.00011095,2]
[351291879,1738506661724,-500.0,0.00011095,2]
[351291880,1738506661733,-500.0,0.00011232,2]
[351291881,1738506661743,-500.0,0.00011232,2]
[351291882,1738506661753,-446.89582667,0.00011369,2]
[351291883,1738506661976,-53.10417333,0.00011369,2]
[351291884,1738506661996,-500.0,0.00011369,2]
[351291885,1738506662007,-500.0,0.00011506,2]
[351291886,1738506662017,-500.0,0.00011506,2]
[351291887,1738506662026,-500.0,0.00011643,2]
[351291888,1738506662035,-0.62206753,0.00011643,2]
[351291889,1738506662048,-171.64356618,0.00011643,2]
[351291890,1738506662057,-315.81288154,0.0001178,2]
[351291891,1738506662069,-73.85230108,0.0001178,2]
[351291892,1738506662079,-7685.49997021,0.00012,2]
[351291893,1738506662090,-2517.55267837,0.00012,2]
[351291894,1738506662337,-902.52,0.00010958,2]
[351291895,1738506662347,-89.99,0.00010958,2]
[351291896,1738506662383,-571.836416,0.00010958,2]
[351291897,1738506662410,-88.813584,0.00010958,2]
[351291898,1738506662420,-500.0,0.00010958,2]
[351291899,1738506662429,-500.0,0.00010958,2]
[351291900,1738506662439,-902.52,0.00011095,2]
[351291901,1738506662448,-750.64,0.00011095,2]
[351291902,1738506662459,-500.0,0.00011095,2]
[351291903,1738506662469,-253.026416,0.00011095,2]
[351291904,1738506662506,-246.973584,0.00011095,2]
[351291905,1738506662516,-902.52,0.00011232,2]
[351291906,1738506662525,-750.64,0.00011232,2]
[351291907,1738506662535,-500.0,0.00011232,2]
[351291908,1738506662544,-229.72702209,0.00011232,2]
[351291909,1738506662554,-500.0,0.00011368,2]
[351291910,1738506662563,-500.0,0.00011368,2]
[351291911,1738506662572,-500.0,0.00011368,2]
[351291912,1738506662581,-902.52,0.00011369,2]
[351291913,1738506662592,-750.64,0.00011369,2]
[351291914,1738506662601,-500.0,0.00011369,2]
[351291915,1738506662611,-436.24698864,0.00011505,2]
[351291916,1738506662623,-63.75301136,0.00011505,2]
[351291917,1738506662632,-500.0,0.00011505,2]
[351291918,1738506662643,-902.52,0.00011506,2]
[351291919,1738506662652,-750.64,0.00011506,2]
[351291920,1738506662663,-543.50811538,0.00011506,2]
[351291921,1738506662672,-902.52,0.00011643,2]
[351291922,1738506662683,-750.64,0.00011643,2]
[351291923,1738506662692,-902.52,0.0001178,2]
[351291924,1738506662702,-902.52,0.00011917,2]
[351291925,1738506662712,-197577.6546621,0.00012,2]
[351291926,1738506662752,-500.0,0.00011368,2]
[351291927,1738506662762,-500.0,0.00011505,2]
[351291928,1738506662771,-52450.53371937,0.00012,2]
[351291929,1738506703002,161.54,0.00016658,30]
[351292465,1738506803272,811.35,8.758e-05,2]
[351292466,1738506853211,10034.41171936,0.00017,30]
[351292467,1738506862150,-528.52,0.00010813,2]
[351292468,1738506862179,-150.0,0.00010957,2]
[351292469,1738506862209,-300.0,0.00010957,2]
[351292470,1738506862239,-500.0,0.00010958,2]
[351292471,1738506862268,-500.0,0.00010958,2]
[351292472,1738506862296,-500.0,0.00010958,2]
[351292473,1738506862325,-500.0,0.00010958,2]
[351292474,1738506862354,-500.0,0.00010958,2]
[351292475,1738506862387,-668.95,0.00010958,2]
[351292476,1738506862417,-500.0,0.00010958,2]
[351292477,1738506862445,-500.0,0.00010958,2]
[351292478,1738506862472,-1367.49,0.00010958,2]
[351292479,1738506862502,-500.0,0.00010958,2]
[351292480,1738506862531,-500.0,0.00010958,2]
[351292481,1738506862559,-500.0,0.00010958,2]
[351292482,1738506862587,-500.0,0.00010958,2]
[351292483,1738506862615,-500.0,0.00010958,2]
[351292484,1738506862644,-500.0,0.00010958,2]
[351292485,1738506862674,-1207.44,0.00010958,2]
[351292486,1738506862704,-607.77,0.00010958,2]
[351292487,1738506862733,-180.50933546,0.00010958,2]
[351292488,1738506862762,-500.0,0.00010958,2]
[351292489,1738506862790,-893.94,0.00010958,2]
[351292490,1738506862824,-500.0,0.00010958,2]
[351292491,1738506862851,-500.0,0.00010958,2]
[351292492,1738506862879,-893.11,0.00010958,2]
[351292493,1738506862907,-500.0,0.00010958,2]
[351292494,1738506862935,-533.68,0.00010958,2]
[351292495,1738506862961,-245.36481169,0.00010958,2]
[351292496,1738506862992,-904.83,0.00010958,2]
[351292497,1738506863024,-500.0,0.00010958,2]
[351292498,1738506863053,-500.0,0.00010958,2]
[351292499,1738506863082,-1199.7,0.00010958,2]
[351292500,1738506863111,-500.0,0.00010958,2]
[351292501,1738506863141,-500.0,0.00010958,2]
[351292502,1738506863172,-500.0,0.00010958,2]
[351292503,1738506863201,-500.0,0.00010958,2]
[351292504,1738506863228,-500.0,0.00010958,2]
[351292505,1738506863254,-971.7,0.00010958,2]
[351292506,1738506863282,-500.0,0.00010958,2]
[351292507,1738506863310,-500.0,0.00010958,2]
[351292508,1738506863337,-858.42,0.00010958,2]
[351292509,1738506863364,-500.0,0.00010958,2]
[351292510,1738506863394,-1044.18,0.00010958,2]
[351292511,1738506863422,-548.9,0.00010958,2]
[351292512,1738506863451,-500.0,0.00010958,2]
[351292513,1738506863480,-500.0,0.00010958,2]
[351292514,1738506863508,-1000.0,0.00010958,2]
[351292515,1738506863536,-500.0,0.00010958,2]
[351292516,1738506863565,-2280.4,0.00010958,2]
[351292517,1738506863594,-500.0,0.00010958,2]
[351292518,1738506863622,-1287.5,0.00010958,2]
[351292519,1738506863652,-2287.77,0.00010958,2]
[351292520,1738506863680,-1594.62,0.00010958,2]
[351292521,1738506863708,-500.0,0.00010958,2]
[351292522,1738506863737,-500.0,0.00010958,2]
[351292523,1738506863766,-500.0,0.00010958,2]
[351292524,1738506863794,-500.0,0.00010958,2]
[351292525,1738506863824,-500.0,0.00010958,2]
[351292526,1738506863852,-660.37,0.00010958,2]
[351292527,1738506863880,-880.33,0.00010958,2]
[351292528,1738506863910,-1878.57,0.00010958,2]
[351292529,1738506863939,-1462.97,0.00010958,2]
[351292530,1738506863966,-615.22,0.00010958,2]
[351292531,1738506863994,-500.0,0.00010958,2]
[351292532,1738506864026,-500.0,0.00010958,2]
[351292533,1738506864258,-543.71,0.00010958,2]
[351292534,1738506864286,-500.0,0.00010958,2]
[351292535,1738506864316,-1492.58,0.00010958,2]
[351292536,1738506864344,-500.0,0.00010958,2]
[351292537,1738506864372,-1390.1,0.00010958,2]
[351292538,1738506864404,-500.0,0.00010958,2]
[351292539,1738506864433,-500.0,0.00010958,2]
[351292540,1738506864463,-500.0,0.00010958,2]
[351292541,1738506864492,-500.0,0.00010958,2]
[351292542,1738506864521,-4007.33,0.00010958,2]
[351292543,1738506864548,-500.0,0.00010958,2]
[351292544,1738506864576,-500.0,0.00010958,2]
[351292545,1738506864605,-3361.46,0.00010958,2]
[351292546,1738506864632,-3091.67,0.00010958,2]
[351292547,1738506864661,-500.0,0.00010958,2]
[351292548,1738506864689,-3513.54,0.00010958,2]
[351292549,1738506864716,-335.7551522,0.00010958,2]
[351292550,1738506864746,-1834.55,0.00010958,2]
[351292551,1738506864773,-164.67780548,0.00010958,2]
[351292552,1738506864802,-500.0,0.00010958,2]
[351292553,1738506864831,-778.09,0.00010958,2]
[351292554,1738506864859,-1799.35,0.00010958,2]
[351292555,1738506864889,-500.0,0.00010958,2]
[351292556,1738506864918,-1202.72,0.00010958,2]
[351292557,1738506864946,-500.0,0.00010958,2]
[351292558,1738506864974,-500.0,0.00010958,2]
[351292559,1738506865006,-661.91,0.00010958,2]
[351292560,1738506865034,-500.0,0.00010958,2]
[351292561,1738506865062,-500.0,0.00010958,2]
[351292562,1738506865092,-1378.04,0.00010958,2]
[351292563,1738506865121,-5710.65,0.00010958,2]
[351292564,1738506865151,-500.0,0.00010958,2]
[351292565,1738506865179,-2904.45,0.00010958,2]
[351292566,1738506865207,-500.0,0.00010958,2]
[351292567,1738506865235,-500.0,0.00010958,2]
[351292568,1738506865263,-861.56,0.00010958,2]
[351292569,1738506865291,-771.15,0.00010958,2]
[351292570,1738506865320,-500.0,0.00010958,2]
[351292571,1738506865347,-500.0,0.00010958,2]
[351292572,1738506865375,-500.0,0.00010958,2]
[351292573,1738506865406,-2459.53,0.00010958,2]
[351292574,1738506865433,-500.0,0.00010958,2]
[351292575,1738506865460,-753.35,0.00010958,2]
[351292576,1738506865488,-1514.5,0.00010958,2]
[351292577,1738506865516,-500.0,0.00010958,2]
[351292578,1738506865544,-1798.72,0.00010958,2]
[351292579,1738506865572,-500.0,0.00010958,2]
[351292580,1738506865604,-500.0,0.00010958,2]
[351292581,1738506865632,-500.0,0.00010958,2]
[351292582,1738506865661,-500.0,0.00010958,2]
[351292583,1738506865689,-500.0,0.00010958,2]
[351292584,1738506865716,-500.0,0.00010958,2]
[351292585,1738506865744,-500.0,0.00010958,2]
[351292586,1738506865771,-500.0,0.00010958,2]
[351292587,1738506865799,-500.0,0.00010958,2]
[351292588,1738506865826,-500.0,0.00010958,2]
[351292589,1738506865854,-500.0,0.00010958,2]
[351292590,1738506865881,-500.0,0.00010958,2]
[351292591,1738506865910,-1867.28,0.00010958,2]
[351292592,1738506865937,-252.39023315,0.00010958,2]
[351292593,1738506865966,-500.0,0.00010958,2]
[351292594,1738506865994,-500.0,0.00010958,2]
[351292595,1738506866026,-500.0,0.00010958,2]
[351292596,1738506866054,-500.0,0.00010958,2]
[351292597,1738506866083,-961.27,0.00010958,2]
[351292598,1738506866111,-840.49,0.00010958,2]
[351292599,1738506866140,-500.0,0.00010958,2]
[351292600,1738506866168,-500.0,0.00010958,2]
[351292601,1738506866196,-500.0,0.00010958,2]
[351292602,1738506866223,-767.1,0.00010958,2]
[351292603,1738506866252,-500.0,0.00010958,2]
[351292604,1738506866279,-620.74,0.00010959,2]
[351292605,1738506866306,-1000.0,0.00011004,2]
[351292606,1738506866335,-811.35,0.00011022,2]
[351292607,1738506866366,-500.0,0.00011093,2]
[351292608,1738506866397,-543.71,0.00011093,2]
[351292609,1738506866424,-500.0,0.00011094,2]
[351292610,1738506866451,-500.0,0.00011094,2]
[351292611,1738506866482,-500.0,0.00011094,2]
[351292612,1738506866509,-510.32993875,0.00011094,2]
[351292613,1738506866537,-500.0,0.00011094,2]
[351292614,1738506866565,-500.0,0.00011094,2]
[351292615,1738506866593,-500.0,0.00011094,2]
[351292616,1738506866622,-500.0,0.00011094,2]
[351292617,1738506866652,-500.0,0.00011094,2]
[351292618,1738506866679,-500.0,0.00011094,2]
[351292619,1738506866706,-500.0,0.00011094,2]
[351292620,1738506866734,-500.0,0.00011094,2]
[351292621,1738506866761,-500.0,0.00011094,2]
[351292622,1738506866788,-500.0,0.00011094,2]
[351292623,1738506866816,-500.0,0.00011094,2]
[351292624,1738506866844,-523.92325256,0.00011094,2]
[351292625,1738506866872,-500.0,0.00011094,2]
[351292626,1738506866901,-500.0,0.00011094,2]
[351292627,1738506866930,-543.71,0.00011094,2]
[351292628,1738506866958,-500.0,0.00011094,2]
[351292629,1738506866986,-500.0,0.00011094,2]
[351292630,1738506867017,-500.0,0.00011094,2]
[351292631,1738506867046,-500.0,0.00011094,2]
[351292632,1738506867074,-500.0,0.00011094,2]
[351292633,1738506867103,-500.0,0.00011094,2]
[351292634,1738506867133,-500.0,0.00011094,2]
[351292635,1738506867163,-500.0,0.00011094,2]
[351292636,1738506867190,-500.0,0.00011094,2]
[351292637,1738506867218,-500.0,0.00011094,2]
[351292638,1738506867245,-500.0,0.00011094,2]
[351292639,1738506867273,-500.0,0.00011094,2]
[351292640,1738506867301,-500.0,0.00011094,2]
[351292641,1738506867328,-500.0,0.00011094,2]
[351292642,1738506867356,-500.0,0.00011094,2]
[351292643,1738506867384,-500.0,0.00011094,2]